bitfinex-derivatives/quotes_SOLF0:USTF0_20250224
["timestamp","ask_amount","ask_price","bid_price","bid_amount"]
[1740403268524,10.1,158.85,158.73,21.9799982]
[1740403268722,0.04341669,158.82,158.79,0.04659095]
[1740403269729,0.04341669,158.82,158.8,6.2962]
[1740403270828,0.04341669,158.82,158.81,6.296]
[1740403271023,78.33628818,158.91,158.79,0.04659095]
[1740403271228,88.45628818,158.91,158.81,21.9799982]
[1740403271730,78.33628818,158.91,158.84,21.9799982]
[1740403272328,78.33628818,158.91,158.87,6.2933]
[1740403272828,6.2919,158.92,158.87,6.2933]
[1740403273123,6.2912,158.94,158.86,0.04078831]
[1740403273328,12.1303,158.98,158.87,21.9799982]
[1740403273525,1.11649126,158.97,158.88,0.04779171]
[1740403273729,6.2904,158.96,158.91,6.2917]
[1740403274132,2.0103,158.98,158.92,0.04500622]
[1740403274332,1.116679,158.97,158.92,0.04500622]
[1740403274533,6.2905,158.95,158.92,0.04500622]
[1740403275028,6.2913,158.93,158.92,0.04500622]
[1740403275232,21.9799982,158.94,158.82,2.0002]
[1740403275526,1.8455,158.92,158.82,2.0002]
[1740403275931,10.12,158.96,158.82,2.0002]
[1740403276127,2.94745544,158.95,158.82,2.0002]
[1740403276327,0.0450838,158.91,158.87,0.04190444]
[1740403277325,0.0450838,158.91,158.88,6.2929]
[1740403277528,0.0450838,158.91,158.87,0.04190444]
[1740403278433,0.0450838,158.91,158.88,6.293]
[1740403278633,0.0450838,158.91,158.87,0.04190444]
[1740403279034,0.0450838,158.91,158.89,6.2925]
[1740403279527,0.0450838,158.91,158.87,0.04190444]
[1740403281136,0.0450838,158.91,158.9,6.2925]
[1740403282033,0.0450838,158.91,158.87,1.90990444]
[1740403282232,0.0450838,158.91,158.87,0.04190444]
[1740403285033,6.2933,158.88,158.87,0.04190444]
[1740403285236,1.8331,158.9,158.8,1.933]
[1740403285433,11.9331,158.9,158.8,1.933]
[1740403285638,1.11640161,158.89,158.8,8.2291]
[1740403285838,11.9331,158.9,158.8,8.2291]
[1740403286042,1.11635676,158.89,158.8,1.933]
[1740403286333,1.11635676,158.89,158.78,21.9799982]
[1740403286540,0.04626984,158.86,158.83,0.04401695]
[1740403286732,6.2944,158.85,158.83,0.04401695]
[1740403287433,0.04626984,158.86,158.83,0.04401695]
[1740403288637,6.34036984,158.86,158.83,0.04401695]
[1740403288937,0.04626984,158.86,158.83,0.04401695]
[1740403295342,6.2948,158.84,158.83,0.04401695]
[1740403295646,0.04626984,158.86,158.83,0.04401695]
[1740403296545,0.04626984,158.86,158.85,6.2944]
[1740403296843,1.11637434,158.95,158.85,21.9799982]
[1740403297042,6.2915,158.93,158.89,6.2926]
[1740403297244,1.899,158.96,158.85,21.9799982]
[1740403297438,1.11646791,158.95,158.85,21.9799982]
[1740403297639,6.2911,158.94,158.9,6.2921]
[1740403297846,0.04132075,158.92,158.89,13.68595471]
[1740403298336,0.04132075,158.92,158.91,19.97805471]
[1740403298642,103.533706,158.97,158.91,13.68595471]
[1740403298842,103.533706,158.97,158.92,6.2913]
[1740403299842,109.823506,158.97,158.93,0.04751351]
[1740403300445,6.2898,158.97,158.93,0.04751351]
[1740403300745,6.2898,158.97,158.93,6.33871351]
[1740403301047,10.4603622,159.03,158.93,0.04751351]
[1740403301048,6.2893,158.98,158.93,0.04751351]
[1740403301250,6.2893,158.98,158.93,6.2912]
[1740403301547,6.2893,158.98,158.94,0.04151764]
[1740403302143,6.2893,158.98,158.94,6.33231764]
[1740403302344,21.88980547,159.03,158.94,0.04151764]
[1740403302649,21.88980547,159.03,158.91,3.7628]
[1740403302650,6.2898,158.97,158.91,3.7628]
[1740403302844,6.2898,158.97,158.92,6.2914]
[1740403303045,6.2898,158.97,158.92,6.33845856]
[1740403303348,6.2904,158.96,158.92,6.33845856]
[1740403303542,6.2904,158.96,158.91,8.1367]
[1740403303749,21.88980547,159.03,158.92,0.0456755]
[1740403303940,21.88980547,159.03,158.9,6.2923]
[1740403303941,6.2908,158.95,158.9,6.2923]
[1740403304143,6.2908,158.95,158.93,0.04125259]
[1740403305448,21.88980547,159.0,158.93,0.04125259]
[1740403305644,6.2909,158.94,158.93,0.04125259]
[1740403309044,6.2923,158.91,158.86,6.2937]
[1740403309245,10.08,158.96,158.82,5.8903]
[1740403309453,1.11585813,158.95,158.82,5.8903]
[1740403309749,6.2927,158.9,158.82,5.8903]
[1740403309947,10.08,158.96,158.82,5.8903]
[1740403310146,0.04043581,158.88,158.84,0.04467329]
[1740403310348,0.04043581,158.88,158.86,6.294]
[1740403310645,0.04079639,158.89,158.86,6.294]
[1740403310845,0.04079639,158.89,158.84,21.93363563]
[1740403311459,0.04079639,158.89,158.88,6.2933]
[1740403312143,6.2915,158.93,158.87,21.88980547]
[1740403312352,1.9183,158.97,158.87,21.88980547]
[1740403313353,1.9183,158.97,158.9,0.04129866]
[1740403313751,6.2921,158.91,158.9,0.04129866]
[1740403314646,6.2936,158.88,158.83,6.295]
[1740403315050,10.08,158.93,158.82,5.8903]
[1740403315352,6.2943,158.86,158.82,3.9633]
[1740403315950,6.33605485,158.86,158.82,4.00939852]
[1740403317455,6.33605485,158.86,158.82,0.04609852]
[1740403317856,0.04175485,158.86,158.82,0.04609852]
[1740403318052,6.2945,158.85,158.82,0.04609852]
[1740403318551,6.2952,158.83,158.82,0.04609852]
[1740403320756,10.08,158.85,158.73,2.0017]
[1740403320957,1.11496042,158.84,158.73,2.0017]
[1740403321256,10.08,158.85,158.73,2.0017]
[1740403321457,6.2965,158.8,158.75,6.2982]
[1740403321654,0.04290062,158.81,158.77,0.0454712]
[1740403321860,0.04290062,158.81,158.78,6.297]
[1740403322363,0.04290062,158.81,158.77,0.04046632]
[1740403326058,6.2972,158.78,158.77,0.04046632]
[1740403327357,0.04290062,158.81,158.77,0.04046632]
[1740403327766,1.11646066,158.89,158.78,21.88980547]
[1740403328062,1.11646066,158.89,158.81,21.88980547]
[1740403328259,1.9538,158.9,158.82,6.2954]
[1740403328457,1.11636296,158.89,158.81,21.88980547]
[1740403328652,217.56952084,158.94,158.81,21.88980547]
[1740403328864,103.533706,158.9,158.81,21.88980547]
[1740403329164,0.04158353,158.88,158.84,21.93650817]
[1740403329364,0.04158353,158.88,158.85,1.8151]
[1740403329958,0.04158353,158.88,158.87,6.2936]
[1740403330661,103.533706,158.9,158.88,6.2929]
[1740403331062,1.8928,158.99,158.85,1.8151]
[1740403331358,1.1168544,158.95,158.85,1.8151]
[1740403331560,1.8928,158.99,158.85,1.8151]
[1740403331761,1.1167971,158.95,158.88,0.04079639]
[1740403332164,3.8281,158.98,158.88,0.04079639]
[1740403332368,1.11682902,158.97,158.87,21.88980547]
[1740403332663,7.40662902,158.97,158.91,6.33350832]
[1740403332863,6.2898,158.97,158.91,6.33350832]
[1740403333061,6.2902,158.96,158.91,6.33350832]
[1740403333261,6.2902,158.96,158.91,0.04150832]
[1740403334062,6.2906,158.95,158.91,0.04150832]
[1740403334264,3.8281,158.98,158.91,0.04150832]
[1740403334559,6.2914,158.93,158.91,0.04150832]
[1740403334764,25.71790547,158.98,158.91,0.04150832]
[1740403334961,1.11672703,158.97,158.91,0.04150832]
[1740403335864,6.2909,158.94,158.91,0.04150832]
[1740403336058,164.88,159.01,158.94,6.2906]
[1740403336252,164.88,159.01,158.9,21.88980547]
[1740403336457,6.2886,159.0,158.96,0.04239247]
[1740403336860,1.9744,159.03,158.96,0.04239247]
[1740403337056,1.11599706,159.02,158.98,6.2893]
[1740403337268,1.9744,159.03,158.96,0.04239247]
[1740403337859,103.533706,159.07,158.98,6.289]
[1740403338063,1.11648459,159.06,158.98,6.289]
[1740403338256,1.11648459,159.06,159.01,0.04775307]
[1740403338870,6.2877,159.02,159.01,0.04775307]
[1740403339665,164.82,159.1,159.01,0.04775307]
[1740403339870,6.2858,159.07,159.01,6.33575307]
[1740403340162,186.70980547,159.1,159.01,0.04775307]
[1740403340369,1.11638408,159.09,159.01,0.04775307]
[1740403340568,1.11614403,159.08,159.01,0.04775307]
[1740403340758,6.2877,159.02,159.01,0.04775307]
[1740403340965,31.96980547,159.04,158.9,21.88980547]
[1740403341266,4.95947164,159.03,158.92,6.2916]
[1740403341568,21.88980547,159.01,158.89,3.7639]
[1740403341763,1.11597164,159.0,158.89,3.7639]
[1740403341963,0.04811695,158.96,158.93,0.04316674]
[1740403342659,6.2906,158.95,158.93,0.04316674]
[1740403342870,0.04811695,158.96,158.93,0.04316674]
[1740403343166,6.2909,158.94,158.93,0.04316674]
[1740403343366,1.8268,158.95,158.83,3.7633]
[1740403343567,1.11494011,158.94,158.83,3.7633]
[1740403343971,1.11494011,158.94,158.83,1.8474]
[1740403344265,6.293,158.89,158.83,8.1426]
[1740403344569,6.293,158.89,158.87,0.04127526]
[1740403345371,0.04519987,158.9,158.87,0.04127526]
[1740403345864,0.04519987,158.9,158.87,21.93108073]
[1740403346669,0.04519987,158.9,158.88,6.2933]
[1740403346870,0.04519987,158.9,158.87,21.93108073]
[1740403347460,6.2896,158.98,158.9,21.88980547]
[1740403347668,6.2896,158.98,158.91,1.9115]
[1740403347864,0.9892934,159.04,158.91,1.9115]
[1740403348069,6.2888,159.0,158.93,21.88980547]
[1740403348265,35.79270547,159.07,158.93,21.88980547]
[1740403348465,0.04073468,158.98,158.97,6.2894]
[1740403348665,6.2877,159.03,158.93,21.88980547]
[1740403348861,0.046562,158.99,158.96,0.04246253]
[1740403349370,0.046562,158.99,158.97,6.2893]
[1740403349570,0.046562,158.99,158.96,21.932268]
[1740403350070,0.046562,158.99,158.97,6.2897]
[1740403352168,0.046562,158.99,158.98,6.2893]
[1740403352869,6.2866,159.05,158.97,1.8451]
[1740403353069,6.2857,159.08,158.99,21.88980547]
[1740403353275,3.7923,159.12,158.99,21.88980547]
[1740403353476,1.11568757,159.11,158.99,21.88980547]
[1740403353974,1.11568757,159.11,159.03,0.04253039]
[1740403354573,7.40008757,159.11,159.06,6.2861]
[1740403354780,191.0,159.13,159.02,21.88980547]
[1740403354972,191.0,159.13,159.07,0.04803773]
[1740403355272,191.0,159.13,159.09,6.2846]
[1740403356271,197.2836,159.13,159.07,0.04803773]
[1740403356471,191.0,159.13,159.07,0.04803773]
[1740403356679,191.0,159.13,159.09,6.2847]
[1740403356870,8.2695,159.15,159.09,6.2847]
[1740403357071,1.11530443,159.14,159.09,6.2847]
[1740403357266,6.2809,159.2,159.1,0.04386795]
[1740403357467,1.11559245,159.19,159.11,21.88980547]
[1740403357673,1.11559245,159.19,159.13,0.04163998]
[1740403357873,8.2665,159.22,159.13,0.04163998]
[1740403358069,1.11571558,159.21,159.13,0.04163998]
[1740403358676,1.11571558,159.21,159.17,6.2815]
[1740403358872,1.11571558,159.21,159.12,3.9427]
[1740403359177,1.9244,159.24,159.17,0.04697598]
[1740403359372,1.11584019,159.23,159.19,6.2807]
[1740403359769,1.9457,159.26,159.19,6.2807]
[1740403359974,1.11596271,159.25,159.19,6.2807]
[1740403360170,1.11596271,159.25,159.21,0.04115077]
[1740403361067,1.11596271,159.25,159.12,3.9427]
[1740403361273,23.00576818,159.25,159.15,6.2825]
[1740403361575,1.11596271,159.24,159.12,3.9427]
[1740403361877,21.88980547,159.22,159.1,6.2844]
[1740403362178,0.04367794,159.19,159.16,0.04452052]
[1740403362580,0.04367794,159.19,159.1,6.2844]
[1740403362769,23.00548021,159.19,159.07,3.713]
[1740403363080,1.11567474,159.18,159.13,21.88980547]
[1740403363377,315.27685724,159.27,159.13,21.88980547]
[1740403363573,21.88980547,159.25,159.18,0.04556513]
[1740403363779,0.04432509,159.22,159.18,0.04556513]
[1740403366475,0.04432509,159.22,159.19,6.281]
[1740403366775,0.04432509,159.22,159.18,0.04556513]
[1740403366973,0.04432509,159.22,159.2,6.2805]
[1740403367180,0.04432509,159.22,159.18,0.04556513]
[1740403367581,0.04432509,159.22,159.2,6.2805]
[1740403367972,0.04432509,159.22,159.18,0.04556513]
[1740403368575,0.04432509,159.22,159.21,6.2802]
[1740403368982,1.9168,159.3,159.19,21.88980547]
[1740403369677,1.11547642,159.29,159.19,21.88980547]
[1740403370080,0.04387337,159.26,159.22,0.04316501]
[1740403370283,0.04387337,159.26,159.22,6.32276501]
[1740403370472,0.04387337,159.26,159.22,0.04316501]
[1740403372174,0.04387337,159.26,159.22,6.32296501]
[1740403372375,0.04387337,159.26,159.22,0.04316501]
[1740403375486,0.04387337,159.26,159.23,6.2791]
[1740403375687,0.04387337,159.26,159.22,0.04316501]
[1740403376186,0.04387337,159.26,159.24,6.2788]
[1740403376482,0.04387337,159.26,159.22,0.04316501]
[1740403376686,0.04387337,159.26,159.25,6.2786]
[1740403377387,0.04387337,159.26,159.22,0.04316501]
[1740403378578,21.88980547,159.25,159.14,1.9311]
[1740403378781,3.11757688,159.24,159.09,3.7756]
[1740403378980,1.11347688,159.23,159.09,5.641]
[1740403379788,0.04132267,159.2,159.16,0.04715841]
[1740403381781,0.04132267,159.2,159.19,6.281]
[1740403381982,0.04132267,159.2,159.17,1.9572]
[1740403382982,0.04132267,159.2,159.17,8.2387]
[1740403383486,0.04132267,159.2,159.16,2.05355841]
[1740403384184,0.04132267,159.2,159.18,6.2812]
[1740403384384,0.04132267,159.2,159.16,2.05355841]
[1740403384684,0.04132267,159.2,159.18,6.2812]
[1740403384889,0.04132267,159.2,159.16,2.05355841]
[1740403386487,0.04132267,159.2,159.19,6.281]
[1740403386683,0.04132267,159.2,159.16,0.04715841]
[1740403388091,178.86617667,159.42,159.18,21.88980547]
[1740403388092,192.9905,159.29,159.18,21.88980547]
[1740403388391,1.11335087,159.28,159.19,3.8178]
[1740403388592,1.11335087,159.29,159.19,3.8178]
[1740403388796,1.9905,159.33,159.23,6.2792]
[1740403389090,1.9905,159.33,159.21,21.88980547]
[1740403389289,0.04470705,159.28,159.25,0.04312173]
[1740403390194,0.04470705,159.28,159.27,6.2778]
[1740403402900,0.04470705,159.28,159.25,1.96132173]
[1740403403104,0.04470705,159.28,159.26,6.2782]
[1740403403611,0.04470705,159.28,159.25,1.96132173]
[1740403403813,0.04470705,159.28,159.27,6.2778]
[1740403405408,1.9413,159.37,159.27,6.2778]
[1740403405713,1.11396299,159.36,159.3,6.2764]
[1740403405913,1.11396299,159.36,159.27,21.88980547]
[1740403406106,1.11396299,159.37,159.27,21.88980547]
[1740403406302,1.11396299,159.36,159.27,21.88980547]
[1740403406509,2.0032,159.38,159.27,21.88980547]
[1740403406709,2.0032,159.38,159.3,0.04071561]
[1740403406909,1.11402824,159.37,159.3,0.04071561]
[1740403407313,2.0029,159.41,159.3,0.04071561]
[1740403407514,1.11422416,159.4,159.27,21.88980547]
[1740403407813,1.11422416,159.4,159.34,0.04729939]
[1740403408010,6.2734,159.39,159.34,0.04729939]
[1740403408214,2.0029,159.41,159.34,0.04729939]
[1740403408710,1.11388373,159.4,159.34,0.04729939]
[1740403409211,6.2747,159.35,159.34,0.04729939]
[1740403409410,21.88980547,159.38,159.26,3.6505]
[1740403409716,6.277,159.3,159.25,1.9182]
[1740403410016,6.277,159.3,159.21,3.7684]
[1740403410205,6.2771,159.29,159.24,6.2788]
[1740403410406,10.06,159.33,159.21,3.7684]
[1740403410710,0.0467255,159.28,159.25,0.04018441]
[1740403410910,0.0467255,159.28,159.17,58.40689235]
[1740403411115,1.1130616,159.31,159.17,58.40689235]
[1740403411318,1.1130616,159.31,159.2,6.2803]
[1740403411510,1.1130616,159.31,159.17,58.40689235]
[1740403411908,1.1130616,159.31,159.17,36.51708688]
[1740403412110,0.04210959,159.26,159.22,0.04022532]
[1740403412321,0.04210959,159.26,159.18,21.88980547]
[1740403412611,0.04210959,159.26,159.17,1.8269]
[1740403412612,0.04210959,159.26,159.22,0.03980332]
[1740403413120,0.04210959,159.26,159.24,21.88980547]
[1740403413318,1.11370561,159.33,159.24,21.88980547]
[1740403413718,10.06,159.35,159.27,21.88980547]
[1740403414013,192.9219,159.38,159.27,21.88980547]
[1740403414014,6.2744,159.36,159.27,21.88980547]
[1740403414217,1.11383241,159.35,159.27,21.88980547]
[1740403414417,0.0420719,159.33,159.3,0.03988519]
[1740403414912,0.0420719,159.33,159.3,6.31648519]
[1740403416217,0.0420719,159.33,159.3,0.03988519]
[1740403416919,6.2763,159.31,159.3,0.03988519]
[1740403418421,6.2773,159.29,159.23,1.8656]
[1740403418617,6.2773,159.29,159.21,21.88980547]
[1740403418818,1.9532,159.3,159.18,21.88980547]
[1740403419218,1.11371604,159.29,159.18,21.88980547]
[1740403419621,0.04774834,159.25,159.22,0.04324492]
[1740403420419,0.04774834,159.25,159.24,6.279]
[1740403420618,0.04774834,159.25,159.22,0.04324492]
[1740403421421,1.11386288,159.33,159.29,6.2767]
[1740403421726,1.11386288,159.33,159.24,21.88980547]
[1740403422025,6.2761,159.32,159.26,6.278]
[1740403422524,0.03751106,159.31,159.27,0.04681236]
[1740403423516,0.03751106,159.31,159.27,6.32461236]
[1740403423722,0.03751106,159.31,159.27,0.04681236]
[1740403424120,0.03751106,159.31,159.3,6.2767]
[1740403424322,0.03751106,159.31,159.27,0.04681236]
[1740403424724,1.89081106,159.31,159.27,0.04681236]
[1740403425426,11.1737603,159.3,159.19,1.9953]
[1740403425626,1.1137603,159.29,159.19,1.9953]
[1740403425927,10.06,159.3,159.19,1.9953]
[1740403426128,1.11383479,159.29,159.19,1.9953]
[1740403426425,0.0450395,159.26,159.23,0.04426007]
[1740403427828,6.2786,159.25,159.23,0.04426007]
[1740403428226,0.0450395,159.26,159.23,0.04426007]
[1740403428825,0.0450395,159.26,159.24,6.279]
[1740403429026,0.0450395,159.26,159.23,0.04426007]
[1740403430634,0.0450395,159.26,159.25,6.2786]
[1740403431729,0.0450395,159.26,159.23,0.04426007]
[1740403431924,0.0450395,159.26,159.23,6.32366007]
[1740403433635,0.0450395,159.26,159.23,0.04426007]
[1740403434436,6.3235395,159.26,159.23,0.04426007]
[1740403434636,0.0450395,159.26,159.23,0.04426007]
[1740403435232,6.279,159.24,159.23,0.04426007]
[1740403435737,6.2805,159.21,159.15,1.9086]
[1740403436435,6.2805,159.21,159.16,6.2821]
[1740403436628,13.8193,159.25,159.15,1.9086]
[1740403436824,6.28,159.22,159.18,0.0420986]
[1740403437029,6.32080658,159.22,159.18,0.0420986]
[1740403437230,6.32070658,159.22,159.18,0.0420986]
[1740403438132,6.32070658,159.22,159.18,6.3233986]
[1740403438736,6.32070658,159.22,159.18,0.0420986]
[1740403439132,0.04080658,159.22,159.18,0.0420986]
[1740403439537,21.88980547,159.21,159.09,51.68644563]
[1740403439742,6.2827,159.15,159.1,14.95704672]
[1740403440036,21.88980547,159.21,159.09,51.68644563]
[1740403440037,21.88980547,159.21,159.09,25.66880547]
[1740403440230,1.11186975,159.2,159.09,25.66880547]
[1740403440632,0.04317142,159.16,159.13,0.04615457]
[1740403442038,1.9278,159.24,159.13,0.04615457]
[1740403442238,1.11170925,159.23,159.13,1.8296]
[1740403442439,6.2795,159.23,159.17,6.2815]
[1740403442640,1.9278,159.24,159.13,1.8296]
[1740403442839,1.11167319,159.23,159.13,1.8296]
[1740403443237,0.04002524,159.2,159.16,0.04247722]
[1740403443641,0.04002524,159.2,159.19,6.2809]
[1740403443942,0.04002524,159.2,159.16,0.04247722]
[1740403444142,0.04002524,159.2,159.17,6.2817]
[1740403444341,0.04002524,159.2,159.16,0.04247722]
[1740403444739,6.32072524,159.2,159.16,0.04247722]
[1740403447839,0.04002524,159.2,159.17,6.2814]
[1740403450138,0.04002524,159.2,159.18,6.2813]
[1740403450542,0.04002524,159.2,159.16,0.04247722]
[1740403450941,11.21111056,159.2,159.1,6.2842]
[1740403451145,11.21111056,159.2,159.07,21.88980547]
[1740403451146,1.11108532,159.19,159.07,21.88980547]
[1740403451348,21.88980547,159.18,159.05,1.887]
[1740403451547,1.11108532,159.17,159.05,1.887]
[1740403451847,3.03158532,159.17,159.05,1.887]
[1740403452047,6.2829,159.15,159.09,6.2847]
[1740403452241,0.04514553,159.13,159.09,0.04784012]
[1740403453140,0.04514553,159.13,159.12,6.2838]
[1740403453344,31.94980547,159.24,159.1,21.88980547]
[1740403453545,1.11012801,159.23,159.11,1.8908]
[1740403453744,21.88980547,159.21,159.07,21.88980547]
[1740403453947,1.11012801,159.2,159.07,21.88980547]
[1740403454543,1.11012801,159.2,159.12,0.04417546]
[1740403454544,0.04675543,159.15,159.12,0.04417546]
[1740403454742,6.2845,159.11,159.05,8.1731]
[1740403455446,10.06,159.16,159.06,6.2859]
[1740403455647,1.10953342,159.15,159.05,1.887]
[1740403455847,6.2841,159.12,159.09,0.04269394]
[1740403456054,0.04225742,159.13,159.09,0.04269394]
[1740403456549,6.2838,159.12,159.09,0.04269394]
[1740403459953,6.2842,159.11,159.09,0.04269394]
[1740403460151,0.04225742,159.13,159.09,0.04269394]
[1740403460653,6.2838,159.12,159.09,0.04269394]
[1740403463353,0.04225742,159.13,159.09,0.04269394]
[1740403464958,6.2846,159.1,159.09,0.04269394]
[1740403467562,212.88980547,159.12,158.95,21.88980547]
[1740403467857,23.85410547,159.09,158.96,3.7702]
[1740403468058,6.2876,159.03,158.96,3.7702]
[1740403468657,0.0410172,159.01,158.98,6.33554489]
[1740403469048,0.0410172,159.01,158.99,6.2889]
[1740403469555,0.0410172,159.01,158.98,0.04664489]
[1740403470458,0.0410172,159.01,158.98,6.33564489]
[1740403471147,0.0410172,159.01,158.98,0.04664489]
[1740403471649,6.3294172,159.01,158.98,0.04664489]
[1740403472653,0.0410172,159.01,158.98,0.04664489]
[1740403472855,6.2888,159.0,158.98,0.04664489]
[1740403473056,0.0410172,159.01,158.98,0.04664489]
[1740403474461,6.3294172,159.01,158.98,0.04664489]
[1740403478056,0.0410172,159.01,158.98,6.33594489]
[1740403479671,0.0410172,159.01,158.98,0.04664489]
[1740403479872,6.2885,159.0,158.98,0.04664489]
[1740403480872,0.0410172,159.01,158.98,0.04664489]
[1740403481076,6.2889,158.99,158.98,0.04664489]
[1740403483569,0.0410172,159.01,158.98,0.04664489]
[1740403485269,0.0410172,159.01,158.98,13.72491707]
[1740403485469,0.0410172,159.01,158.98,17.67661707]
[1740403486275,6.287,159.04,159.01,6.2879]
[1740403487475,6.32733292,159.04,159.01,6.33491314]
[1740403487774,0.04033292,159.04,159.01,6.33491314]
[1740403487974,0.04033292,159.04,159.01,0.04701314]
[1740403488275,0.04033292,159.04,159.02,6.2876]
[1740403490772,0.04033292,159.04,159.03,6.2873]
[1740403493472,6.2842,159.11,159.03,13.67827218]
[1740403494175,6.2842,159.11,159.07,6.2855]
[1740403494477,13.67827218,159.12,159.07,6.2855]
[1740403494675,0.04338062,159.11,159.07,0.0414087]
[1740403494874,0.04338062,159.11,159.08,6.2851]
[1740403495179,0.04338062,159.11,159.07,0.0414087]
[1740403495379,0.04338062,159.11,159.1,6.2846]
[1740403495775,0.04338062,159.11,159.08,6.2853]
[1740403495974,0.04338062,159.11,159.07,0.0414087]
[1740403496576,0.04338062,159.11,159.09,6.2846]
[1740403496878,0.04338062,159.11,159.07,0.0414087]
[1740403497272,0.04338062,159.11,159.1,6.2846]
[1740403499675,0.04338062,159.11,159.07,0.0414087]
[1740403499876,0.04338062,159.11,159.08,6.2853]
[1740403500177,0.04338062,159.11,159.07,0.0414087]
[1740403500380,0.04338062,159.11,159.08,6.2853]
[1740403500682,0.04338062,159.11,159.07,0.0414087]
[1740403500983,0.04338062,159.11,159.08,6.2853]
[1740403501683,0.04338062,159.11,159.07,0.0414087]
[1740403501877,13.7216528,159.11,159.07,0.0414087]
[1740403502572,1.1095596,159.1,159.07,0.0414087]
[1740403503382,6.2853,159.08,159.07,0.0414087]
[1740403504283,6.2851,159.09,159.07,0.0414087]
[1740403504484,13.7216528,159.11,159.07,0.0414087]
[1740403504779,0.04338062,159.11,159.07,0.0414087]
[1740403504982,0.04338062,159.11,159.09,6.2849]
[1740403505577,0.04338062,159.11,159.07,0.0414087]
[1740403505778,0.04338062,159.11,159.08,6.2852]
[1740403507985,0.04338062,159.11,159.07,0.0414087]
[1740403508283,13.67827218,159.1,159.07,0.0414087]
[1740403508679,6.2853,159.08,159.07,0.0414087]
[1740403509579,7.39507373,159.08,159.07,0.0414087]
[1740403509779,21.07334591,159.08,159.07,0.0414087]
[1740403510585,6.2874,159.03,158.97,1.8405]
[1740403511485,6.2874,159.03,158.98,6.289]
[1740403511686,0.04530345,159.02,158.98,6.33148233]
[1740403512484,0.04530345,159.02,158.99,6.2889]
[1740403514889,0.04530345,159.02,158.98,0.04248233]
[1740403515086,0.04530345,159.02,159.0,6.2885]
[1740403515683,0.04530345,159.02,158.98,13.72075451]
[1740403515885,7.39661237,159.07,158.98,13.72075451]
[1740403516085,1.11071237,159.06,158.98,13.67827218]
[1740403516293,6.2859,159.07,159.0,13.67827218]
[1740403516493,6.2859,159.07,159.03,6.2871]
[1740403516989,6.33048368,159.07,159.03,6.33168044]
[1740403519695,0.04458368,159.07,159.03,6.33168044]
[1740403520095,0.04458368,159.07,159.04,6.2868]
[1740403521598,0.04458368,159.07,159.06,6.2861]
[1740403523798,6.2838,159.12,159.08,6.285]
[1740403524202,13.67827218,159.13,159.04,3.8831]
[1740403524498,6.2835,159.13,159.09,6.2847]
[1740403524898,6.32576552,159.13,159.09,6.33230561]
[1740403525198,6.32576552,159.13,159.09,0.04760561]
[1740403528594,6.2844,159.11,159.09,0.04760561]
[1740403531708,0.04226552,159.13,159.09,0.04760561]
[1740403532704,6.2844,159.11,159.09,0.04760561]
[1740403532903,0.04226552,159.13,159.09,0.04760561]
[1740403533105,1.15509314,159.13,159.09,0.04760561]
[1740403533304,6.2846,159.1,159.09,0.04760561]
[1740403533505,1.15509314,159.13,159.1,6.2845]
[1740403533506,0.04226552,159.13,159.1,6.2845]
[1740403534101,0.04226552,159.13,159.11,6.2839]
[1740403534508,0.04226552,159.13,159.1,8.74038327]
[1740403534706,0.04226552,159.13,159.12,6.2838]
[1740403535711,0.04226552,159.13,159.11,6.2841]
[1740403535906,0.04226552,159.13,159.1,1.984]
[1740403536914,0.04226552,159.13,159.11,6.2841]
[1740403537211,0.04226552,159.13,159.1,1.984]
[1740403537513,0.04226552,159.13,159.12,6.2838]
[1740403539618,13.65251143,159.22,159.12,13.65251143]
[1740403539817,1.11341007,159.21,159.12,15.57621143]
[1740403540015,1.1134207,159.2,159.16,6.2819]
[1740403540210,13.65251143,159.22,159.16,6.2819]
[1740403540411,1.11345283,159.21,159.12,15.57621143]
[1740403540613,6.2813,159.19,159.17,0.04108939]
[1740403541218,6.2807,159.2,159.17,0.04108939]
[1740403541708,0.03961768,159.21,159.17,0.04108939]
[1740403541912,1.1532138,159.21,159.17,0.04108939]
[1740403543124,6.2813,159.19,159.17,0.04108939]
[1740403543622,0.03961768,159.21,159.17,0.04108939]
[1740403543822,6.2814,159.18,159.17,0.04108939]
[1740403544122,0.03961768,159.21,159.17,0.04108939]
[1740403544323,6.2814,159.18,159.17,0.04108939]
[1740403545221,13.65251143,159.2,159.17,0.04108939]
[1740403545420,0.03961768,159.21,159.17,0.04108939]